bitfinex-derivatives/quotes_BTCF0:USTF0_20250508
["timestamp","ask_amount","ask_price","bid_price","bid_amount"]
[1746746290813,0.14,103210.0,103200.0,3.20227856]
[1746746291602,0.01641411,103210.0,103200.0,3.20227856]
[1746746292110,0.01641411,103210.0,103200.0,3.20109043]
[1746746293512,0.01641411,103210.0,103200.0,3.00463729]
[1746746293712,0.00959891,103210.0,103200.0,3.00444196]
[1746746295021,0.00959891,103210.0,103200.0,2.99514994]
[1746746295321,0.00959891,103210.0,103200.0,3.00463598]
[1746746296122,0.00959891,103210.0,103200.0,2.83663598]
[1746746297210,0.00959891,103210.0,103200.0,2.94509759]
[1746746297411,0.00959891,103210.0,103200.0,2.83663598]
[1746746298210,0.00959891,103210.0,103200.0,2.83688302]
[1746746298625,0.00959891,103210.0,103200.0,2.94534463]
[1746746298820,0.00959891,103210.0,103200.0,2.93555949]
[1746746299120,0.00959891,103210.0,103200.0,3.11334485]
[1746746299306,0.00959891,103210.0,103200.0,2.89642163]
[1746746299510,0.00505546,103210.0,103200.0,3.00488324]
[1746746299712,0.00505546,103210.0,103200.0,3.11334485]
[1746746299913,0.00505546,103210.0,103200.0,3.11387069]
[1746746300420,0.00505546,103210.0,103200.0,3.00540908]
[1746746300719,0.00505546,103210.0,103200.0,3.00529171]
[1746746300919,0.00505546,103210.0,103200.0,3.00729171]
[1746746301817,0.00505546,103210.0,103200.0,2.92559044]
[1746746302019,0.00505546,103210.0,103200.0,3.00646132]
[1746746302323,0.03785546,103210.0,103200.0,2.91942132]
[1746746302621,0.00505546,103210.0,103200.0,2.90651657]
[1746746306527,0.00505546,103210.0,103200.0,2.91735009]
[1746746306721,0.03625546,103210.0,103200.0,2.91735009]
[1746746306917,0.00505546,103210.0,103200.0,2.91735009]
[1746746307419,0.00505546,103210.0,103200.0,2.917363]
[1746746307924,0.00505546,103210.0,103200.0,2.76921369]
[1746746308126,0.00505546,103210.0,103200.0,2.40841369]
[1746746308325,0.00505546,103210.0,103200.0,3.13001369]
[1746746308526,0.00505546,103210.0,103200.0,3.11916726]
[1746746309124,0.00505546,103210.0,103200.0,3.10951733]
[1746746309326,0.00505546,103210.0,103200.0,3.11893336]
[1746746309626,0.00505546,103210.0,103200.0,3.12993175]
[1746746310728,0.00505546,103210.0,103200.0,3.12593175]
[1746746310929,0.00505546,103210.0,103200.0,3.12793175]
[1746746311225,0.20475546,103210.0,103200.0,3.12793175]
[1746746311929,0.33794008,103210.0,103200.0,3.12993175]
[1746746312921,0.33794008,103210.0,103200.0,3.1305004]
[1746746314729,0.44640169,103210.0,103200.0,1.36027727]
[1746746314921,0.36974008,103210.0,103200.0,1.17219727]
[1746746315118,0.40244008,103210.0,103200.0,1.17219727]
[1746746316532,0.40244008,103210.0,103200.0,1.17210154]
[1746746316729,0.51090169,103210.0,103200.0,0.61718154]
[1746746316924,0.68469099,103210.0,103200.0,0.69814154]
[1746746317118,0.781587,103210.0,103200.0,0.66774154]
[1746746317319,1.031587,103210.0,103200.0,0.66774154]
[1746746317720,0.38244008,103210.0,103200.0,0.66774154]
[1746746317921,0.39244008,103210.0,103200.0,0.70084154]
[1746746318131,0.39244008,103210.0,103200.0,0.73424154]
[1746746318727,0.39244008,103210.0,103200.0,0.73450056]
[1746746318933,0.49121319,103210.0,103200.0,0.73449991]
[1746746319828,0.49121319,103210.0,103200.0,0.76719991]
[1746746320738,0.5996748,103210.0,103200.0,0.76719991]
[1746746320933,0.39244008,103210.0,103200.0,0.76719991]
[1746746321636,0.39244008,103210.0,103200.0,0.74589572]
[1746746324539,0.39244008,103210.0,103200.0,0.7544174]
[1746746325337,0.39244008,103210.0,103200.0,1.1152174]
[1746746325635,0.39244008,103210.0,103200.0,1.0342574]
[1746746325935,0.39244008,103210.0,103200.0,1.1152174]
[1746746326837,0.39244008,103210.0,103200.0,1.0342574]
[1746746327034,0.39244008,103210.0,103200.0,1.1151774]
[1746746327226,0.22444008,103210.0,103200.0,1.1151774]
[1746746327938,0.22444008,103210.0,103200.0,1.11542788]
[1746746328133,0.22444008,103210.0,103200.0,1.11543266]
[1746746328338,0.39244008,103210.0,103200.0,1.11543266]
[1746746328542,0.288,103210.0,103200.0,1.27389427]
[1746746329240,0.12,103210.0,103200.0,1.27389427]
[1746746329740,0.12,103210.0,103200.0,1.27407268]
[1746746330740,0.12,103210.0,103200.0,1.16561107]
[1746746331034,0.12,103210.0,103200.0,1.26511733]
[1746746331243,0.12,103210.0,103200.0,1.2740954]
[1746746331828,0.12,103210.0,103200.0,1.16563379]
[1746746332241,0.12,103210.0,103200.0,1.2740954]
[1746746333042,0.12,103210.0,103200.0,0.5524954]
[1746746333237,0.12,103210.0,103200.0,1.2740954]
[1746746333642,0.12,103210.0,103200.0,1.27391703]
[1746746334343,0.12,103210.0,103200.0,1.16545542]
[1746746335244,0.12,103210.0,103200.0,1.24637542]
[1746746335434,0.12,103210.0,103200.0,1.24627088]
[1746746337840,0.12,103210.0,103200.0,1.35473249]
[1746746339443,0.12,103210.0,103200.0,1.24627088]
[1746746339643,0.12,103210.0,103200.0,1.35473249]
[1746746339846,0.12,103210.0,103200.0,1.24627088]
[1746746340040,0.12,103210.0,103200.0,1.35473249]
[1746746342138,0.41646161,103210.0,103200.0,1.31627088]
[1746746342338,0.4045,103210.0,103200.0,1.31627088]
[1746746343148,0.308,103210.0,103200.0,1.42473249]
[1746746343446,0.308,103210.0,103200.0,1.31627088]
[1746746343632,0.308,103210.0,103200.0,1.23535088]
[1746746343831,0.4045,103210.0,103200.0,1.19627088]
[1746746344343,0.70675091,103210.0,103200.0,1.19627088]
[1746746344644,0.51296161,103210.0,103200.0,1.12977088]
[1746746344938,0.51296161,103210.0,103200.0,0.96793088]
[1746746345143,0.51296161,103210.0,103200.0,1.04885088]
[1746746345844,0.51296161,103210.0,103200.0,1.08105556]
[1746746346443,0.4045,103210.0,103200.0,1.08105556]
[1746746348843,0.308,103210.0,103200.0,1.10859717]
[1746746349042,0.1549761,103210.0,103200.0,1.27043717]
[1746746349246,0.1069901,103210.0,103200.0,1.84843717]
[1746746349443,0.1069901,103210.0,103200.0,1.83983733]
[1746746349649,0.1069901,103210.0,103200.0,1.84835347]
[1746746350345,0.1069901,103210.0,103200.0,1.68035347]
[1746746350548,0.1069901,103210.0,103200.0,1.67835347]
[1746746350748,0.1069901,103210.0,103200.0,1.67635347]
[1746746350945,0.1069901,103210.0,103200.0,1.67935347]
[1746746351138,0.1069901,103210.0,103200.0,1.28089186]
[1746746351337,0.1069901,103210.0,103200.0,1.28106353]
[1746746351542,0.1703901,103210.0,103200.0,1.27237572]
[1746746353454,0.2013901,103210.0,103200.0,1.27221934]
[1746746355950,0.1703901,103210.0,103200.0,1.27221934]
[1746746357951,0.1703901,103210.0,103200.0,1.30511934]
[1746746359156,0.1703901,103210.0,103200.0,1.22419934]
[1746746359357,0.1703901,103210.0,103200.0,1.30511934]
[1746746359554,0.1703901,103210.0,103200.0,1.18511934]
[1746746360548,0.1703901,103210.0,103200.0,1.19363725]
[1746746360749,0.1703901,103210.0,103200.0,1.19363724]
[1746746361658,0.1703901,103210.0,103200.0,1.03179724]
[1746746361856,0.1703901,103210.0,103200.0,1.19363724]
[1746746362655,0.27885171,103210.0,103200.0,1.03179724]
[1746746362852,0.47264101,103210.0,103200.0,1.07981724]
[1746746363052,0.50434101,103210.0,103200.0,1.08014499]
[1746746363352,0.50434101,103210.0,103200.0,0.68704499]
[1746746363949,0.50434101,103210.0,103200.0,0.60612499]
[1746746364158,0.50434101,103210.0,103200.0,0.68688308]
[1746746364548,0.50434101,103210.0,103200.0,0.60596308]
[1746746364754,0.60123702,103210.0,103200.0,0.65418308]
[1746746365163,0.60123702,103210.0,103200.0,0.6539668]
[1746746365658,0.60123702,103210.0,103200.0,0.56457934]
[1746746365960,0.60365702,103210.0,103200.0,0.56457934]
[1746746366462,0.60365702,103210.0,103200.0,0.20377934]
[1746746366662,0.60365702,103210.0,103200.0,0.2122216]
[1746746366863,1.28275702,103210.0,103200.0,0.01856988]
[1746746367160,0.1938081,103200.0,103190.0,0.3391707]
[1746746367350,0.62603132,103200.0,103190.0,0.3391707]
[1746746367553,0.80385532,103200.0,103190.0,0.3391707]
[1746746367752,0.80385532,103200.0,103190.0,0.2907171]
[1746746368363,0.80385532,103200.0,103190.0,0.2957171]
[1746746368759,1.16465532,103200.0,103190.0,0.2957171]
[1746746369666,0.80385532,103200.0,103190.0,0.2957171]
[1746746369868,0.80385532,103200.0,103190.0,0.3289171]
[1746746370665,0.80685532,103200.0,103190.0,0.3239171]
[1746746371263,0.90562843,103200.0,103190.0,0.3239171]
[1746746372158,0.79716682,103200.0,103190.0,0.3239171]
[1746746372352,0.90562843,103200.0,103190.0,0.3239171]
[1746746372556,0.79716682,103200.0,103190.0,0.3239171]
[1746746372857,0.79716682,103200.0,103190.0,0.3561171]
[1746746373569,0.68870521,103200.0,103190.0,0.3561171]
[1746746373762,0.79716682,103200.0,103190.0,0.3871171]
[1746746374066,0.71624682,103200.0,103190.0,0.3871171]
[1746746374667,0.61747371,103200.0,103190.0,0.3871171]
[1746746375260,0.61747371,103200.0,103190.0,0.3561171]
[1746746376069,0.5090121,103200.0,103190.0,0.3561171]
[1746746376368,0.61747371,103200.0,103190.0,0.3561171]
[1746746377470,0.52056971,103200.0,103190.0,0.3561171]
[1746746380669,0.62903132,103200.0,103190.0,0.3561171]
[1746746382574,0.72593532,103200.0,103190.0,0.3561171]
[1746746382779,0.61747371,103200.0,103190.0,0.36491822]
[1746746383266,0.72593532,103200.0,103190.0,0.36491822]
[1746746383471,0.72593532,103200.0,103190.0,0.3561171]
[1746746383676,0.72593532,103200.0,103190.0,0.36499217]
[1746746383871,0.61747371,103200.0,103190.0,0.36499217]
[1746746384471,0.003,103200.0,103190.0,0.80675217]
[1746746384774,0.123,103200.0,103190.0,0.80675217]
[1746746385877,0.3168081,103200.0,103190.0,0.80675217]
[1746746386466,0.3168081,103200.0,103190.0,0.806752]
[1746746387272,0.123,103200.0,103190.0,0.806752]
[1746746387981,0.123,103200.0,103190.0,0.80666494]
[1746746389979,0.123,103200.0,103190.0,0.72570494]
[1746746389980,0.42526971,103200.0,103190.0,0.72570494]
[1746746390278,0.42526971,103200.0,103190.0,0.80662494]
[1746746391867,0.42526971,103200.0,103190.0,0.80633604]
[1746746392774,0.78606971,103200.0,103190.0,0.2592108]
[1746746392974,0.89453132,103200.0,103190.0,0.0654]
[1746746393181,0.96653132,103200.0,103190.0,0.0654]
[1746746393986,0.96653132,103200.0,103190.0,0.2592269]
[1746746395784,0.85806971,103200.0,103190.0,0.26766136]
[1746746397487,0.95684282,103200.0,103190.0,0.26766136]
[1746746398881,1.06530443,103200.0,103190.0,0.07383446]
[1746746399086,1.85532443,103200.0,103190.0,0.0332]
[1746746399280,1.85532443,103200.0,103190.0,0.0418057]
[1746746399476,1.85532443,103200.0,103190.0,0.2270269]
[1746746399886,0.1938457,103180.0,103170.0,0.36467694]
[1746746400087,0.78310731,103180.0,103170.0,0.27662892]
[1746746400384,0.85220731,103180.0,103170.0,0.27662892]
[1746746400590,0.7437457,103180.0,103170.0,0.27662892]
[1746746400892,0.85220731,103180.0,103170.0,0.27662892]
[1746746401286,0.85220731,103180.0,103170.0,0.29142073]
[1746746401682,0.65836161,103180.0,103170.0,0.29142073]
[1746746401890,0.3829457,103180.0,103170.0,0.65422073]
[1746746402188,0.49140731,103180.0,103170.0,0.65422073]
[1746746402595,0.49240731,103180.0,103170.0,0.65422073]
[1746746402792,0.49240731,103180.0,103170.0,0.65222073]
[1746746403396,0.59018042,103180.0,103170.0,0.68982073]
[1746746404394,0.55488042,103180.0,103170.0,0.68982073]
[1746746404887,0.55488042,103180.0,103170.0,0.70065724]
[1746746405794,0.55488042,103180.0,103170.0,0.68982073]
[1746746406888,0.55488042,103180.0,103170.0,0.70078747]
[1746746407492,0.55488042,103180.0,103170.0,0.33998747]
[1746746407798,0.55488042,103180.0,103170.0,0.70151483]
[1746746408193,0.58868042,103180.0,103170.0,0.14685043]
[1746746408397,0.48990731,103180.0,103170.0,0.07655043]
[1746746408696,0.58683131,103180.0,103170.0,0.27041483]
[1746746408894,0.49290731,103180.0,103170.0,0.26841483]
[1746746409197,0.49390731,103180.0,103170.0,0.30531483]
[1746746409695,0.49390731,103180.0,103170.0,0.30496277]
[1746746411402,0.49390731,103180.0,103170.0,0.30503493]
[1746746412202,0.3854457,103180.0,103170.0,0.30503493]
[1746746412399,0.134,103180.0,103170.0,0.77429654]
[1746746412706,0.134,103180.0,103170.0,0.66583493]
[1746746413297,0.131,103180.0,103170.0,0.66583493]
[1746746413602,0.134,103180.0,103170.0,0.66583493]
[1746746413800,0.134,103180.0,103170.0,0.66678817]
[1746746414903,0.133,103180.0,103170.0,0.66678817]
[1746746415407,0.133,103180.0,103170.0,0.85640978]
[1746746415699,0.12745468,103180.0,103170.0,1.06640978]
[1746746415904,0.12260655,103180.0,103170.0,1.06640978]
[1746746416104,0.12060655,103180.0,103170.0,1.06640978]
[1746746416304,0.11378902,103180.0,103170.0,1.06840978]
[1746746416496,0.10651725,103180.0,103170.0,0.95994817]
[1746746416696,0.10651725,103180.0,103170.0,1.06840978]
[1746746419813,0.10893725,103180.0,103170.0,0.95994817]
[1746746420107,0.10893725,103180.0,103170.0,1.06840978]
[1746746420401,0.10893725,103180.0,103170.0,1.05841333]
[1746746420602,0.10893725,103180.0,103170.0,1.06873833]
[1746746421208,0.10893725,103180.0,103170.0,0.96311672]
[1746746421409,0.30278295,103180.0,103170.0,0.68525232]
[1746746421702,0.47012731,103180.0,103170.0,0.66911672]
[1746746421912,0.50672731,103180.0,103170.0,0.66911672]
[1746746422209,0.50672731,103180.0,103170.0,0.43835232]
[1746746422409,0.50672731,103180.0,103170.0,0.63202684]
[1746746423102,0.50672731,103180.0,103170.0,0.23562684]
[1746746423505,0.86752731,103180.0,103170.0,0.23562684]
[1746746423904,0.86752731,103180.0,103170.0,0.27292684]
[1746746425210,0.50672731,103180.0,103170.0,0.27292684]
[1746746425409,0.86752731,103180.0,103170.0,0.27292684]
[1746746427004,0.7590657,103180.0,103170.0,0.27292684]
[1746746427214,0.86752731,103180.0,103170.0,0.30912684]
[1746746427404,0.50672731,103180.0,103170.0,0.66992684]
[1746746427802,0.50672731,103180.0,103170.0,0.66963913]
[1746746429609,0.50672731,103180.0,103170.0,0.67001381]
[1746746430108,0.3982657,103180.0,103170.0,0.67001381]
[1746746430310,0.50672731,103180.0,103170.0,0.67001381]
[1746746430809,0.3982657,103180.0,103170.0,0.67001381]
[1746746431008,0.50672731,103180.0,103170.0,0.30921381]
[1746746431210,0.50672731,103180.0,103170.0,0.67001381]
[1746746431412,0.50672731,103180.0,103170.0,0.67011478]
[1746746432113,0.3982657,103180.0,103170.0,0.67011478]
[1746746432411,0.50672731,103180.0,103170.0,0.67011478]
[1746746433208,0.00242,103180.0,103170.0,0.67081626]
[1746746433506,0.13242,103180.0,103170.0,0.67081626]
[1746746433813,0.13242,103180.0,103170.0,0.77927787]
[1746746434213,0.13242,103180.0,103170.0,0.94727787]
[1746746434413,0.12757178,103180.0,103170.0,0.83881626]
[1746746435113,0.12757178,103180.0,103170.0,0.83881448]
[1746746435319,0.12757178,103180.0,103170.0,1.19961448]
[1746746435613,0.12302656,103180.0,103170.0,1.19961448]
[1746746436214,0.12302656,103180.0,103170.0,1.30807609]
[1746746436406,0.12302656,103180.0,103170.0,1.19961448]
[1746746436906,0.12302656,103180.0,103170.0,1.19985117]
[1746746437216,0.6791,103190.0,103180.0,0.1938457]
[1746746437409,0.8291,103190.0,103180.0,0.77234372]
[1746746438014,0.8291,103190.0,103180.0,0.78713553]
[1746746438210,0.8291,103190.0,103180.0,0.94428053]
[1746746438414,0.8311,103190.0,103180.0,0.9548915]
[1746746438616,0.8311,103190.0,103180.0,0.9548914]
[1746746440817,0.152,103190.0,103180.0,0.9548914]
[1746746442412,0.152,103190.0,103180.0,0.95501368]
[1746746442814,0.152,103190.0,103180.0,1.06347529]
[1746746443820,0.15,103190.0,103180.0,1.14751529]
[1746746444319,0.15,103190.0,103180.0,1.14986594]
[1746746446123,0.15,103190.0,103180.0,1.15003575]
[1746746450221,0.14515272,103190.0,103180.0,1.15003575]
[1746746451627,0.14515272,103190.0,103180.0,1.14985897]
[1746746451923,0.14515272,103190.0,103180.0,1.26985897]
[1746746452726,0.14515272,103190.0,103180.0,1.16139736]
[1746746453026,0.14515272,103190.0,103180.0,1.26985897]
[1746746453525,0.14515272,103190.0,103180.0,1.26986295]
[1746746454025,0.14515272,103190.0,103180.0,1.16140134]
[1746746454229,0.14515272,103190.0,103180.0,1.07672134]
[1746746454418,0.14515272,103190.0,103180.0,0.95672134]
[1746746454620,0.17985272,103190.0,103180.0,1.04140134]
[1746746454826,0.21495272,103190.0,103180.0,1.04140134]
[1746746455032,0.21495272,103190.0,103180.0,0.87268134]
[1746746455327,0.21495272,103190.0,103180.0,0.78940134]
[1746746459333,0.31826161,103190.0,103180.0,0.11183564]
[1746746459629,0.50208851,103190.0,103180.0,0.03923564]
[1746746459825,1.07980051,103190.0,103180.0,0.03923564]
[1746746460029,0.1938457,103180.0,103170.0,0.36467694]
[1746746460229,0.1938832,103160.0,103150.0,0.14814931]
[1746746460437,1.49224481,103160.0,103150.0,0.14814931]
[1746746460625,1.56534481,103160.0,103150.0,0.34205131]
[1746746460931,1.56534481,103160.0,103150.0,0.39035514]
[1746746462428,1.73226161,103160.0,103150.0,0.39035514]
[1746746462620,1.37146161,103160.0,103150.0,0.39035514]
[1746746462825,1.37146161,103160.0,103150.0,0.42725514]
[1746746463434,1.37146161,103160.0,103150.0,0.39035514]
[1746746463435,1.56534481,103160.0,103150.0,0.39035514]
[1746746463730,1.54534481,103160.0,103150.0,0.39235514]
[1746746463926,1.54534481,103160.0,103150.0,0.195902]
[1746746463927,1.90914481,103160.0,103150.0,0.195902]
[1746746466125,1.90914481,103160.0,103150.0,0.002]
[1746746466334,1.90914481,103160.0,103150.0,0.195902]
[1746746469335,1.91214481,103160.0,103150.0,0.193902]
[1746746470125,2.00608481,103160.0,103150.0,0.193902]
[1746746470326,2.01108481,103160.0,103150.0,0.193902]
[1746746470531,2.00908481,103160.0,103150.0,0.193902]
[1746746471041,2.00808481,103160.0,103150.0,0.193902]
[1746746471232,2.01108481,103160.0,103150.0,0.193902]
[1746746472044,2.01108481,103160.0,103150.0,0.20483925]
[1746746472432,2.01108481,103160.0,103150.0,0.20477381]
[1746746473542,1.91414481,103160.0,103150.0,0.20477381]
[1746746473739,0.193902,103150.0,103140.0,0.01099669]
[1746746473934,0.1939396,103130.0,103120.0,0.2791374]
[1746746474141,0.80320121,103130.0,103120.0,0.25124443]
[1746746474338,0.80320121,103130.0,103120.0,0.2424374]
[1746746474339,0.91150121,103130.0,103120.0,0.2424374]
[1746746474742,0.8030396,103130.0,103120.0,0.2938527]
[1746746475044,0.91150121,103130.0,103120.0,0.3295527]
[1746746475246,0.91150121,103130.0,103120.0,0.3315527]
[1746746476446,0.87660121,103130.0,103120.0,0.3315527]
[1746746477345,0.87860121,103130.0,103120.0,0.3295527]
[1746746478345,0.87860121,103130.0,103120.0,0.32963466]
[1746746479843,0.87860121,103130.0,103120.0,0.3148374]
[1746746480547,0.7701396,103130.0,103120.0,0.3148374]
[1746746480748,0.87860121,103130.0,103120.0,0.3148374]
[1746746482147,0.88102121,103130.0,103120.0,0.3148374]
[1746746483848,1.56012121,103130.0,103120.0,0.0367]
[1746746484048,1.92092121,103130.0,103120.0,0.0367]
[1746746484242,0.1939584,103120.0,103110.0,0.08050913]
[1746746484545,0.88802001,103120.0,103110.0,0.31198643]
[1746746485344,0.88802001,103120.0,103110.0,0.11800913]
[1746746485650,1.67558162,103120.0,103110.0,0.08200913]
[1746746485840,1.67558162,103120.0,103110.0,0.04450913]
[1746746486041,1.67558162,103120.0,103110.0,0.20218643]
[1746746486042,1.56712001,103120.0,103110.0,0.20218643]
[1746746486641,1.77256162,103120.0,103110.0,0.00820913]
[1746746487043,1.77256162,103120.0,103110.0,0.01020913]
[1746746487650,1.66410001,103120.0,103110.0,0.01020913]
[1746746488058,1.77256162,103120.0,103110.0,0.01020913]
[1746746490045,1.77256162,103120.0,103110.0,0.00296983]
[1746746490447,0.1939773,103110.0,103100.0,0.17510966]
[1746746490646,1.04888052,103110.0,103100.0,0.17510966]
[1746746491555,1.04988052,103110.0,103100.0,0.37110576]
[1746746492444,1.04988052,103110.0,103100.0,0.40480576]
[1746746494852,1.04988052,103110.0,103100.0,0.41194839]
[1746746495059,1.04988052,103110.0,103100.0,0.21795229]
[1746746498653,1.04988052,103110.0,103100.0,0.11205229]
[1746746499355,1.04988052,103110.0,103100.0,0.14645229]
[1746746500349,1.04988052,103110.0,103100.0,0.18025229]
[1746746501354,1.04988052,103110.0,103100.0,0.17825229]
[1746746501551,1.05788052,103110.0,103100.0,0.17825229]
[1746746501857,1.05788052,103110.0,103100.0,0.37224839]
[1746746503662,0.4898,103110.0,103100.0,0.37224839]
[1746746503859,0.74716,103130.0,103120.0,0.1939584]
[1746746504055,0.39482161,103130.0,103120.0,0.1939584]
[1746746504256,0.79252161,103130.0,103120.0,0.3619584]
[1746746504558,1.41076161,103130.0,103120.0,0.3619584]
[1746746505258,1.41376161,103130.0,103120.0,0.1939584]
[1746746505958,1.41576161,103130.0,103120.0,0.1939584]
[1746746506162,1.41576161,103130.0,103120.0,0.3619584]
[1746746506860,1.41776161,103130.0,103120.0,0.3619584]
[1746746507060,1.02980161,103130.0,103120.0,0.4675584]
[1746746508360,1.41776161,103130.0,103120.0,0.4675584]
[1746746511766,1.41476161,103130.0,103120.0,0.4675584]
[1746746512974,1.41276161,103130.0,103120.0,0.4675584]
[1746746513469,1.46276161,103130.0,103120.0,0.168]
[1746746513662,1.49846161,103130.0,103120.0,0.168]
[1746746514372,0.1939584,103120.0,103110.0,0.3945649]
[1746746514572,1.45586001,103120.0,103110.0,0.3945649]
[1746746515172,1.45586001,103120.0,103110.0,0.5625649]
[1746746516184,1.45586001,103120.0,103110.0,0.57083264]
[1746746516359,1.45586001,103120.0,103110.0,0.52333834]
[1746746516559,1.44586001,103120.0,103110.0,0.17726774]
[1746746516765,1.52954001,103120.0,103110.0,0.17626774]
[1746746517167,0.1939773,103110.0,103100.0,0.50444209]
[1746746517370,1.45307891,103110.0,103100.0,0.51271279]
[1746746518070,1.45307891,103110.0,103100.0,0.68071279]
[1746746518269,1.06511891,103110.0,103100.0,0.68071279]
[1746746518573,0.7289773,103110.0,103100.0,0.68071279]
[1746746518765,0.6947773,103110.0,103100.0,0.68071279]
[1746746519366,0.6947773,103110.0,103100.0,0.68171279]
[1746746519776,0.6971973,103110.0,103100.0,0.68171279]
[1746746520574,0.6971973,103110.0,103100.0,0.68152398]
[1746746521073,0.7312973,103110.0,103100.0,0.68152398]
[1746746521675,0.3704973,103110.0,103100.0,0.68152398]
[1746746522078,0.3704973,103110.0,103100.0,0.67344209]
[1746746522473,0.7312973,103110.0,103100.0,0.67344209]
[1746746524081,0.83975891,103110.0,103100.0,0.67344209]
[1746746524381,0.87325891,103110.0,103100.0,0.67344209]
[1746746524581,1.45519891,103110.0,103100.0,0.62494329]
[1746746524881,1.56366052,103110.0,103100.0,0.34865229]
[1746746525083,1.59896052,103110.0,103100.0,0.37464839]
[1746746525384,1.49049891,103110.0,103100.0,0.37464839]
[1746746526275,1.49049891,103110.0,103100.0,0.54264839]
[1746746527383,1.49049891,103110.0,103100.0,0.37464839]
[1746746527580,1.49049891,103110.0,103100.0,0.40854839]
[1746746528085,1.49049891,103110.0,103100.0,0.57654839]
[1746746530187,1.29651891,103110.0,103100.0,0.57654839]
[1746746530385,1.49049891,103110.0,103100.0,0.57654839]
[1746746531487,1.45519891,103110.0,103100.0,0.57654839]
[1746746531883,1.09439891,103110.0,103100.0,0.57654839]
[1746746532091,0.9859373,103110.0,103100.0,0.57654839]
[1746746534786,0.9859373,103110.0,103100.0,0.58471217]
[1746746535690,0.9859373,103110.0,103100.0,0.58478641]
[1746746535892,0.9859373,103110.0,103100.0,0.5996529]
[1746746536291,0.9859373,103110.0,103100.0,0.58478641]
[1746746536993,0.9859373,103110.0,103100.0,0.58478608]
[1746746538296,0.9859373,103110.0,103100.0,0.58467969]
[1746746538494,0.4039973,103110.0,103100.0,0.58467969]
[1746746538702,0.14242,103110.0,103100.0,0.94547969]
[1746746539205,0.14242,103110.0,103100.0,0.94548298]
[1746746539801,0.14242,103110.0,103100.0,1.40093258]
[1746746540002,0.23,103130.0,103120.0,0.1939584]
[1746746540307,0.08,103130.0,103120.0,0.64499027]
[1746746540509,0.08,103130.0,103120.0,0.35159027]
[1746746540703,0.1149,103130.0,103120.0,0.71239027]
[1746746541207,0.1189,103130.0,103120.0,0.88039027]
[1746746541404,0.1209,103130.0,103120.0,0.8722384]
[1746746541705,0.1209,103130.0,103120.0,0.88043113]
[1746746542410,0.1189,103130.0,103120.0,0.88043113]
[1746746542604,0.1149,103130.0,103120.0,0.88143113]
[1746746543613,0.1149,103130.0,103120.0,0.91753113]
[1746746544804,0.1149,103130.0,103120.0,0.9093384]
[1746746545809,0.1476,103130.0,103120.0,0.9093384]
[1746746548115,0.1476,103130.0,103120.0,0.91744972]
[1746746548915,0.1476,103130.0,103120.0,0.91740986]
[1746746549317,0.1476,103130.0,103120.0,0.55660986]
[1746746549819,0.1476,103130.0,103120.0,0.91740986]
[1746746550117,0.1476,103130.0,103120.0,0.91737383]
[1746746552317,0.1476,103130.0,103120.0,0.91736388]
[1746746552818,0.34158,103130.0,103120.0,0.55656388]
[1746746553215,1.3342796,103130.0,103120.0,0.47448388]
[1746746553413,1.34874121,103130.0,103120.0,0.37098388]
[1746746553609,1.48874121,103130.0,103120.0,0.169]
[1746746553810,0.1939773,103110.0,103100.0,0.11005229]
[1746746554112,1.86444052,103110.0,103100.0,0.11005229]
[1746746554421,1.97004052,103110.0,103100.0,0.31886818]
[1746746555314,1.97104052,103110.0,103100.0,0.30404839]
[1746746555512,1.97104052,103110.0,103100.0,0.30804839]
[1746746555716,1.97004052,103110.0,103100.0,0.30804839]
[1746746555918,1.97004052,103110.0,103100.0,0.31104839]
[1746746556422,1.97974323,103110.0,103100.0,0.31104839]
[1746746556717,1.97974323,103110.0,103100.0,0.30904839]
[1746746557817,1.25814323,103110.0,103100.0,0.30904839]
[1746746558019,1.97974323,103110.0,103100.0,0.30904839]
[1746746558415,1.97974323,103110.0,103100.0,0.30604839]
[1746746558620,1.97974323,103110.0,103100.0,0.30404839]
[1746746559921,1.87128162,103110.0,103100.0,0.30404839]
[1746746561219,1.97974323,103110.0,103100.0,0.11005229]
[1746746564027,1.76282001,103110.0,103100.0,0.30404839]
[1746746564223,1.97974323,103110.0,103100.0,0.30404839]
[1746746565327,1.98374323,103110.0,103100.0,0.30404839]
[1746746565518,1.98674323,103110.0,103100.0,0.30404839]
[1746746569125,1.98674323,103110.0,103100.0,0.11005229]
[1746746575230,2.06906323,103110.0,103100.0,0.11005229]
[1746746577335,1.87508593,103110.0,103080.0,0.32690271]
[1746746577634,1.60601651,103090.0,103080.0,0.31149551]
[1746746577939,1.75601651,103090.0,103080.0,0.31149551]
[1746746578132,1.85711651,103090.0,103080.0,0.47949551]
[1746746578940,1.85953651,103090.0,103080.0,0.47949551]
[1746746579140,1.86053651,103090.0,103080.0,0.31885965]
[1746746580231,1.82733651,103090.0,103080.0,0.48685965]
[1746746581243,1.82733651,103090.0,103080.0,0.31885965]
[1746746585149,1.82733651,103090.0,103080.0,0.48685965]
[1746746586149,1.82733651,103090.0,103080.0,0.31885965]
[1746746588158,1.82733651,103090.0,103080.0,0.48685965]
[1746746588458,1.56545651,103090.0,103080.0,0.48685965]
[1746746588754,1.17749651,103090.0,103080.0,0.48685965]
[1746746588956,0.45589651,103090.0,103080.0,0.48685965]
[1746746590256,0.3474349,103090.0,103080.0,0.48685965]
[1746746590460,0.15342,103090.0,103080.0,0.59532126]
[1746746590650,0.15342,103090.0,103080.0,0.84765965]
[1746746595361,0.15342,103090.0,103080.0,0.85065965]
[1746746595762,0.15242,103090.0,103080.0,0.85165965]
[1746746596462,0.15242,103090.0,103080.0,0.85365965]
[1746746597465,0.15242,103090.0,103080.0,0.85165965]
[1746746597765,0.15242,103090.0,103080.0,0.84865965]
[1746746598066,0.15242,103090.0,103080.0,0.85065965]
[1746746599467,0.15242,103090.0,103080.0,0.84965965]
[1746746599666,0.15242,103090.0,103080.0,0.85065965]
[1746746601669,0.15242,103090.0,103080.0,0.86542801]
[1746746602168,0.15242,103090.0,103080.0,0.87357679]
[1746746602570,0.18622,103090.0,103080.0,0.51277679]
[1746746602872,0.18622,103090.0,103080.0,0.87357679]
[1746746603975,0.18622,103090.0,103080.0,0.86542801]
[1746746604276,0.18622,103090.0,103080.0,0.51277661]
[1746746604573,0.18622,103090.0,103080.0,0.86542801]
[1746746604872,0.18622,103090.0,103080.0,0.85065965]
[1746746606270,0.3802349,103090.0,103080.0,0.48985965]
[1746746606472,1.42894997,103090.0,103080.0,0.48985965]
[1746746606782,1.50012504,103090.0,103080.0,0.37335275]
[1746746607164,1.50012504,103090.0,103080.0,0.20535275]
[1746746607370,1.50012504,103090.0,103080.0,0.01133425]
[1746746607770,1.50012504,103090.0,103080.0,0.20536795]
[1746746609777,1.46628165,103090.0,103080.0,0.20536795]
[1746746610176,1.46728165,103090.0,103080.0,0.20436795]
[1746746610576,1.46728165,103090.0,103080.0,0.20236795]